bitfinex/quotes_ETHUSD_20241116
["timestamp","ask_amount","ask_price","bid_price","bid_amount"]
[1731800053974,3.18523,3139.5,3138.9,4.00315]
[1731800054135,3.18523,3139.5,3139.0,3.18571]
[1731800054482,3.18505,3139.7,3139.1,4.00296]
[1731800054655,3.18505,3139.7,3139.2,0.55]
[1731800056393,3.18514,3139.6,3139.1,0.8174]
[1731800056551,3.18547,3139.3,3139.1,0.8174]
[1731800057502,3.18528,3139.5,3139.1,0.8174]
[1731800057864,3.18534,3139.4,3139.1,0.8174]
[1731800059183,3.18579,3139.0,3138.3,3.18636]
[1731800059502,3.18579,3139.0,3138.4,7.00371]
[1731800060163,3.18586,3138.9,3138.4,0.8174]
[1731800061755,3.18579,3139.0,3138.4,0.8174]
[1731800062197,3.18555,3139.2,3138.8,0.7934]
[1731800063094,3.18533,3139.4,3138.8,0.7934]
[1731800063282,3.18543,3139.3,3138.8,0.7934]
[1731800063493,3.18533,3139.4,3138.8,0.7934]
[1731800063494,3.1856,3139.2,3138.8,0.7934]
[1731800065587,3.18562,3139.1,3138.8,0.7934]
[1731800066327,3.97565,3139.6,3138.9,0.55]
[1731800066542,3.18515,3139.6,3139.1,0.7981]
[1731800066682,3.18493,3139.8,3139.2,0.06370702]
[1731800066884,3.18493,3139.8,3139.3,0.4047407]
[1731800067099,3.18493,3139.8,3139.2,0.55]
[1731800067412,3.18522,3139.5,3139.2,0.55]
[1731800068828,3.18552,3139.2,3138.9,0.7981]
[1731800069041,3.504072,3139.2,3138.9,0.7981]
[1731800069335,3.18535,3139.4,3138.9,0.7981]
[1731800069489,3.18545,3139.3,3138.9,0.7981]
[1731800072110,3.18516,3139.6,3138.9,0.7981]
[1731800072309,3.18538,3139.4,3138.9,0.7981]
[1731800072513,3.18538,3139.4,3138.9,1.14304001]
[1731800074138,3.18514,3139.6,3138.9,1.14304001]
[1731800074288,6.37035,3139.6,3138.9,4.32885001]
[1731800074494,6.37035,3139.6,3138.9,1.14304001]
[1731800074495,3.18532,3139.4,3138.9,1.14304001]
[1731800074698,3.18532,3139.4,3138.9,0.7981]
[1731800074926,3.18562,3139.1,3138.7,0.7981]
[1731800075140,0.8209,3139.3,3138.8,0.55]
[1731800075141,4.00633,3139.3,3138.8,0.55]
[1731800075313,3.18555,3139.2,3138.8,0.55]
[1731800076033,0.8209,3139.6,3138.7,0.7981]
[1731800076034,3.18571,3139.1,3138.7,0.7981]
[1731800076250,3.18522,3139.5,3138.7,3.98406]
[1731800076439,0.400612,3139.4,3138.7,0.7981]
[1731800076622,3.18572,3139.1,3138.7,0.7981]
[1731800077050,6.37144,3139.1,3138.7,0.7981]
[1731800077258,3.18572,3139.1,3138.7,0.7981]
[1731800080055,3.18573,3139.0,3138.7,0.7981]
[1731800081173,3.18584,3138.9,3138.6,0.04777005]
[1731800081653,3.18603,3138.7,3138.6,0.04777005]
[1731800086118,6.21605897,3139.1,3138.6,0.04777005]
[1731800086119,3.18593,3138.8,3138.6,0.04777005]
[1731800086322,3.18603,3138.7,3138.6,0.04777005]
[1731800088430,3.96553,3138.7,3138.6,0.04777005]
[1731800088656,4.680676,3138.7,3138.6,0.04777005]
[1731800094074,3.18603,3138.7,3138.6,0.04777005]
[1731800094232,3.18593,3138.8,3138.6,0.04777005]
[1731800095374,3.18603,3138.7,3138.6,0.04777005]
[1731800100604,5.46689753,3139.4,3138.7,0.7792]
[1731800100738,3.18509,3139.7,3139.0,3.18565]
[1731800100941,5.46689753,3139.9,3139.2,0.7792]
[1731800100942,3.18481,3139.9,3139.2,0.7792]
[1731800101264,3.18522,3139.5,3139.2,0.7792]
[1731800101646,3.18532,3139.4,3139.2,0.7792]
[1731800101850,3.18522,3139.5,3139.2,0.7792]
[1731800102878,3.18523,3139.5,3139.2,0.7792]
[1731800103088,3.1854,3139.4,3139.2,0.7792]
[1731800103238,3.18523,3139.5,3139.2,0.7792]
[1731800103434,3.1854,3139.4,3139.2,0.7792]
[1731800103640,3.18542,3139.3,3139.2,0.7792]
[1731800104548,3.18523,3139.5,3139.2,0.7792]
[1731800104749,3.18538,3139.4,3139.2,0.7792]
[1731800105254,3.18514,3139.6,3139.2,0.7792]
[1731800105457,6.58693249,3140.2,3139.0,3.18568]
[1731800105683,3.1848,3140.0,3139.3,0.7521]
[1731800105891,3.18498,3139.8,3139.3,0.7521]
[1731800108109,3.1848,3140.0,3139.4,3.18527]
[1731800108610,3.1848,3140.0,3139.3,1.15223242]
[1731800108820,3.18488,3139.9,3139.3,1.15223242]
[1731800109000,3.18471,3140.0,3139.3,1.15223242]
[1731800109171,1.11404609,3140.2,3139.4,3.18524]
[1731800109373,3.18481,3139.9,3139.3,1.15223242]
[1731800109579,3.18481,3139.9,3139.4,0.43376724]
[1731800109932,3.18492,3139.8,3139.4,0.43376724]
[1731800110214,3.18492,3139.8,3139.3,0.7521]
[1731800112242,3.96524,3140.2,3139.3,0.7521]
[1731800112422,3.18461,3140.1,3139.5,3.1852]
[1731800113321,3.18471,3140.0,3139.5,3.1852]
[1731800113927,3.96524,3140.2,3139.5,3.1852]
[1731800114113,3.18467,3140.1,3139.5,3.1852]
[1731800114543,3.18454,3140.2,3139.6,0.7521]
[1731800114854,3.18433,3140.4,3139.9,3.1848]
[1731800115548,3.1841,3140.6,3139.9,3.1848]
[1731800115761,3.1841,3140.6,3140.0,3.93676]
[1731800116049,3.18433,3140.4,3140.0,0.7521]
[1731800116760,3.18433,3140.4,3139.1,3.01]
[1731800116761,3.18461,3140.1,3138.8,0.7521]
[1731800116931,6.36931,3140.1,3139.5,0.7521]
[1731800117253,3.18472,3140.0,3139.5,0.7521]
[1731800117815,3.18483,3139.9,3139.5,0.7521]
[1731800119642,3.18543,3139.3,3139.0,0.7521]
[1731800119955,3.96575,3139.7,3139.0,0.7521]
[1731800120140,3.18492,3139.8,3139.2,3.93761]
[1731800120947,3.18483,3139.9,3139.3,3.18535]
[1731800122809,3.18491,3139.8,3139.3,3.18535]
[1731800123727,3.18491,3139.8,3139.2,0.7521]
[1731800124067,3.18483,3139.9,3139.2,0.7521]
[1731800124068,3.18503,3139.7,3139.2,0.7521]
[1731800124958,3.18518,3139.6,3139.2,0.7521]
[1731800125258,3.18524,3139.5,3139.2,0.7521]
[1731800125620,3.18542,3139.3,3139.2,0.7521]
[1731800125816,3.18563,3139.1,3138.7,0.7793]
[1731800126056,3.18542,3139.3,3138.7,3.96531]
[1731800126217,3.18542,3139.3,3138.7,1.799225]
[1731800126560,3.1857,3139.1,3138.7,0.7793]
[1731800128866,3.18542,3139.3,3138.7,0.7793]
[1731800129163,3.18514,3139.6,3139.1,0.7793]
[1731800129464,3.18523,3139.5,3139.1,0.7793]
[1731800130036,3.18514,3139.6,3139.1,0.7793]
[1731800130440,3.18514,3139.6,3139.1,1.175796]
[1731800130843,3.18493,3139.8,3139.1,1.175796]
[1731800131102,3.18512,3139.6,3139.1,0.7793]
[1731800131394,3.18507,3139.7,3139.1,0.7793]
[1731800131546,3.18507,3139.7,3139.1,3.96486]
[1731800131854,3.18475,3140.0,3139.3,3.18534]
[1731800132041,3.18475,3140.0,3139.4,0.827]
[1731800132238,3.18481,3139.9,3139.4,0.827]
[1731800134166,3.18502,3139.7,3139.4,0.827]
[1731800134682,3.18522,3139.5,3139.1,0.827]
[1731800134884,3.18542,3139.3,3139.1,0.827]
[1731800135588,6.37051,3139.5,3139.1,0.827]
[1731800135784,3.18534,3139.4,3139.1,0.827]
[1731800136379,3.18505,3139.7,3139.1,0.827]
[1731800136596,3.18508,3139.7,3139.2,0.827]
[1731800136744,3.18508,3139.7,3139.2,1.228257]
[1731800136947,3.18522,3139.5,3139.2,1.228257]
[1731800137142,3.18508,3139.7,3139.2,1.228257]
[1731800137585,0.7627,3140.1,3139.2,1.228257]
[1731800137586,0.7627,3140.1,3139.3,0.827]
[1731800137757,3.1852,3139.6,3139.3,0.827]
[1731800138511,3.18523,3139.5,3139.3,0.827]
[1731800138717,3.18499,3139.8,3139.3,0.827]
[1731800140113,3.18472,3140.0,3139.4,3.18526]
[1731800140309,3.18472,3140.0,3139.5,0.827]
[1731800141395,3.18488,3139.9,3139.5,0.827]
[1731800142307,3.18472,3140.0,3139.5,0.827]
[1731800142673,3.18452,3140.2,3139.6,0.7906]
[1731800142885,3.18452,3140.2,3139.6,3.9757]
[1731800143110,3.18461,3140.1,3139.6,0.7906]
[1731800144192,5.47851088,3140.6,3139.6,3.9757]
[1731800144428,3.84081897,3140.7,3139.8,0.7906]
[1731800144429,3.18452,3140.2,3139.8,0.7906]
[1731800144589,3.18443,3140.3,3139.8,0.7906]
[1731800145014,3.18424,3140.5,3139.8,0.7906]
[1731800145175,3.18402,3140.7,3140.1,0.7906]
[1731800145385,3.18414,3140.6,3140.1,0.7906]
[1731800145588,3.18402,3140.7,3140.1,0.7906]
[1731800145929,3.184,3140.7,3140.2,0.7906]
[1731800146430,3.18421,3140.5,3140.2,0.7906]
[1731800147123,3.184,3140.7,3140.2,0.7906]
[1731800147326,3.18413,3140.6,3140.2,0.7906]
[1731800150497,3.18413,3140.6,3140.2,1.18813]
[1731800150825,3.18431,3140.4,3140.2,0.7906]
[1731800151129,3.18422,3140.5,3140.2,0.7906]
[1731800152502,3.1844,3140.3,3139.8,3.0]
[1731800152690,3.1844,3140.3,3139.9,0.697552]
[1731800153041,6.3689,3140.3,3139.9,0.697552]
[1731800153333,3.1843,3140.4,3139.9,0.697552]
[1731800153558,3.18446,3140.3,3139.9,0.697552]
[1731800153746,3.18463,3140.1,3139.9,0.697552]
[1731800154033,3.18508,3139.7,3139.2,0.7906]
[1731800154444,0.8104,3140.1,3139.2,0.7906]
[1731800154445,3.18535,3139.4,3139.2,0.7906]
[1731800154755,3.18542,3139.3,3139.2,0.7906]
[1731800154909,3.18535,3139.4,3139.2,0.7906]
[1731800155094,3.18542,3139.3,3139.2,0.7906]
[1731800155907,3.18542,3139.3,3138.9,0.7906]
[1731800156107,3.18542,3139.3,3138.9,1.488256]
[1731800157011,3.18548,3139.3,3138.9,1.488256]
[1731800157205,3.18572,3139.0,3138.6,0.83837005]
[1731800158105,3.99593,3139.2,3138.6,0.83837005]
[1731800158442,3.18563,3139.1,3138.6,0.83837005]
[1731800158600,3.18563,3139.1,3138.7,0.40245801]
[1731800158941,3.99563,3139.5,3138.9,3.18578]
[1731800159094,3.18523,3139.5,3139.0,0.7906]
[1731800159291,3.18523,3139.5,3139.0,1.188238]
[1731800159795,3.18522,3139.5,3139.0,1.188238]
[1731800161099,3.18534,3139.4,3139.0,1.188238]
[1731800161296,3.18534,3139.4,3139.0,0.7906]
[1731800161502,3.18513,3139.6,3139.0,0.7906]
[1731800162093,3.18513,3139.6,3139.0,3.9763]
[1731800162296,8.50205653,3140.2,3139.3,3.18541]
[1731800162297,3.18479,3140.0,3139.3,3.18541]
[1731800162636,3.580209,3139.9,3139.3,3.18541]
[1731800162932,3.18489,3139.9,3139.3,3.18541]
[1731800163635,3.18493,3139.8,3139.2,0.8147]
[1731800163794,3.18482,3139.9,3139.2,0.8147]
[1731800163991,3.18482,3139.9,3139.2,1.214725]
[1731800164235,3.18443,3140.3,3139.3,1.3647]
[1731800164415,3.18452,3140.2,3139.6,0.8147]
[1731800164608,3.18437,3140.4,3139.6,0.8147]
[1731800164798,3.18437,3140.4,3139.8,3.18491]
[1731800165310,3.18437,3140.4,3139.8,3.584871]
[1731800165511,3.18437,3140.4,3139.9,0.8147]
[1731800165695,3.18441,3140.3,3139.9,0.8147]
[1731800166310,0.7684,3140.7,3139.9,0.8147]
[1731800166508,3.18432,3140.4,3139.9,0.8147]
[1731800166709,3.18432,3140.4,3139.9,1.57952449]
[1731800166908,3.18421,3140.5,3139.9,1.57952449]
[1731800167110,3.18432,3140.4,3139.9,1.57952449]
[1731800168432,3.1846,3140.2,3139.9,0.8147]
[1731800168753,3.1846,3140.2,3139.7,0.8147]
[1731800168754,3.18467,3140.1,3139.7,0.8147]
[1731800168949,0.7684,3140.4,3139.7,0.8147]
[1731800169101,3.18481,3140.0,3139.7,0.8147]
[1731800169316,0.3798819,3140.3,3139.3,0.8147]
[1731800169317,3.18509,3139.7,3139.3,0.8147]
[1731800169665,3.18528,3139.5,3139.3,0.8147]
[1731800170420,3.18528,3139.5,3139.2,0.04776076]
[1731800171624,3.18528,3139.5,3139.1,0.8147]
[1731800172693,3.18528,3139.5,3138.7,3.18601]
[1731800172987,3.18528,3139.5,3138.8,0.8147]
[1731800173197,3.18528,3139.5,3138.8,0.87841181]
[1731800173490,3.18535,3139.4,3138.8,4.00062]
[1731800174495,3.18519,3139.6,3138.9,3.18576]
[1731800174675,0.7684,3139.8,3138.9,3.18576]
[1731800174991,3.1851,3139.7,3138.9,3.18576]
[1731800175300,3.18522,3139.5,3138.9,3.91077618]
[1731800175831,3.18522,3139.5,3139.0,0.8001]
[1731800176420,3.1851,3139.7,3139.1,3.18559]
[1731800176777,3.18518,3139.6,3139.0,0.8001]
[1731800176975,3.1851,3139.7,3139.0,3.98576]
[1731800177221,3.1851,3139.7,3139.1,3.97526562]
[1731800178527,3.1851,3139.7,3139.1,0.78965562]
[1731800178830,3.18511,3139.6,3139.1,0.78965562]
[1731800179036,3.1851,3139.7,3139.1,0.78965562]
[1731800179181,3.18523,3139.5,3139.0,0.8001]
[1731800179380,3.18543,3139.3,3139.0,0.8001]
[1731800182088,3.18562,3139.1,3139.0,0.8001]
[1731800182288,3.18574,3139.0,3138.6,0.7815]
[1731800182999,3.18592,3138.9,3138.6,0.7815]
[1731800184220,3.18592,3138.9,3138.1,3.23438506]
[1731800184221,3.1862,3138.6,3138.3,0.7815]
[1731800184397,3.18633,3138.4,3138.3,0.7815]
[1731800184593,3.1862,3138.6,3138.3,0.7815]
[1731800184825,3.18623,3138.5,3138.3,0.7815]
[1731800185192,3.18633,3138.4,3138.3,0.7815]
[1731800185409,3.18633,3138.4,3138.1,0.82927506]
[1731800186134,3.1862,3138.6,3138.1,0.82927506]
[1731800186440,3.18634,3138.4,3138.1,0.82927506]
[1731800186904,3.18653,3138.3,3138.1,0.82927506]
[1731800187054,3.18634,3138.4,3138.1,0.04777506]
[1731800187055,3.18654,3138.2,3138.1,0.04777506]
[1731800187361,3.823828,3138.2,3138.1,0.04777506]
[1731800187513,4.657028,3138.2,3138.1,0.04777506]
[1731800188852,4.666302,3138.2,3138.1,0.04777506]
[1731800189646,4.666302,3138.2,3138.1,5.06e-06]
[1731800189844,7.666302,3138.2,3138.1,5.06e-06]
[1731800190576,8.216302,3138.2,3138.1,5.06e-06]
[1731800192112,11.23744697,3138.2,3138.1,5.06e-06]
[1731800192375,7.68744697,3138.2,3138.1,5.06e-06]
[1731800193130,10.68744697,3138.2,3138.1,5.06e-06]
[1731800193531,11.23744697,3138.2,3138.1,5.06e-06]
[1731800195176,11.24672097,3138.2,3138.1,5.06e-06]
[1731800196082,10.68744697,3138.2,3138.1,5.06e-06]
[1731800196283,7.68744697,3138.2,3138.1,5.06e-06]
[1731800197272,3.18634,3138.4,3138.1,5.06e-06]
[1731800197484,3.79731897,3138.7,3138.1,5.06e-06]
[1731800197784,3.18654,3138.2,3138.1,5.06e-06]
[1731800198136,3.18652,3138.3,3138.1,5.06e-06]
[1731800198375,3.18615,3138.6,3138.1,5.06e-06]
[1731800198837,3.18644,3138.3,3138.1,0.40049257]
[1731800199071,3.18644,3138.3,3138.1,5.06e-06]
[1731800201340,3.18582,3138.9,3138.1,5.06e-06]
[1731800201538,3.18654,3138.2,3138.1,5.06e-06]
[1731800205779,3.195814,3138.2,3138.1,5.06e-06]
[1731800205955,5.2803143,3138.2,3138.1,5.06e-06]
[1731800206692,3.18755,3137.2,3136.6,0.809]
[1731800206902,3.18774,3137.1,3136.6,0.809]
[1731800208176,3.18777,3137.0,3136.6,0.809]
[1731800208345,3.18805,3136.8,3136.6,0.809]
[1731800208948,3.18829,3136.5,3136.1,0.809]
[1731800210084,3.18807,3136.7,3136.1,0.809]
[1731800210277,3.18768,3137.1,3136.1,0.809]
[1731800210474,3.18758,3137.2,3136.5,0.809]
[1731800210784,3.18758,3137.2,3136.5,3.99716]
[1731800211582,3.18773,3137.1,3136.5,0.809]
[1731800211904,3.18776,3137.0,3136.5,0.809]
[1731800212058,3.1876,3137.2,3136.5,0.809]
[1731800212389,3.18784,3137.0,3136.5,0.809]
[1731800214777,3.18756,3137.2,3136.5,3.99726]
[1731800214977,3.18776,3137.0,3136.5,0.809]
[1731800215366,3.18807,3136.7,3136.5,0.809]
[1731800215567,3.18778,3137.0,3136.5,0.809]
[1731800216393,3.18789,3136.9,3136.5,0.809]
[1731800217089,3.18685,3137.9,3136.7,0.809]
[1731800217307,3.18732,3137.5,3137.1,0.809]
[1731800217791,3.18684,3138.0,3137.1,0.809]
[1731800217792,3.18735,3137.4,3137.1,0.809]
[1731800218108,3.18752,3137.3,3137.1,0.809]
[1731800218403,3.18735,3137.4,3137.1,0.809]
[1731800218694,3.18716,3137.6,3137.1,0.809]
[1731800218695,3.18726,3137.5,3137.1,0.809]
[1731800219887,3.18698,3137.8,3137.1,0.809]
[1731800220091,3.18715,3137.6,3137.1,0.809]
[1731800220248,3.18715,3137.6,3137.1,3.99664]
[1731800220668,3.18715,3137.6,3137.1,0.809]
[1731800220855,3.18725,3137.5,3137.1,0.809]
[1731800221065,3.18715,3137.6,3137.1,0.809]
[1731800221448,3.18725,3137.5,3137.1,0.809]
[1731800221695,3.18725,3137.5,3136.3,3.0]
[1731800221696,3.18793,3136.9,3136.5,0.809]
[1731800222654,3.18787,3136.9,3136.5,0.809]
[1731800222853,3.18797,3136.8,3136.5,0.809]
[1731800223090,3.1878,3137.0,3136.5,0.809]
[1731800223455,3.18786,3136.9,3136.5,0.809]
[1731800223957,3.18798,3136.8,3136.5,0.809]
[1731800224199,3.1877,3137.1,3136.5,0.809]
[1731800224497,0.31877,3137.0,3136.5,0.809]
[1731800224702,3.18728,3137.5,3136.5,0.809]
[1731800224867,3.18728,3137.5,3137.0,0.8004]
[1731800226297,3.18765,3137.1,3136.8,0.8004]
[1731800226806,3.18785,3137.0,3136.8,0.8004]
[1731800227099,3.18786,3136.9,3136.8,0.8004]
[1731800227265,0.637551,3136.9,3136.3,3.18839]
[1731800227467,3.18765,3137.1,3136.4,0.8004]
[1731800227958,0.7989,3137.4,3136.4,0.8004]
[1731800228306,3.18797,3136.8,3136.4,0.8004]
[1731800229093,3.18758,3137.2,3136.4,0.8004]
[1731800229291,3.586228,3137.2,3136.4,0.8004]
[1731800229714,3.18777,3137.0,3136.4,0.8004]
[1731800230193,3.18777,3137.0,3136.4,3.98873]
[1731800230352,3.586228,3137.2,3136.4,3.98873]
[1731800230551,3.18767,3137.1,3136.5,3.18826]
[1731800232158,3.18782,3137.0,3136.4,0.8004]
[1731800232505,3.18783,3137.0,3136.4,0.8004]
[1731800232956,3.18783,3137.0,3136.4,3.98874]
[1731800233507,3.18783,3137.0,3136.4,7.17703]
[1731800233799,3.18766,3137.1,3136.4,3.98869]
[1731800235271,3.18778,3137.0,3136.5,3.18817]
[1731800235601,3.18793,3136.9,3136.4,0.8004]
[1731800236517,0.6774088,3137.0,3136.4,0.8004]
[1731800236725,0.6774088,3137.0,3136.4,3.98876]
[1731800236902,8.46271485,3137.8,3136.1,3.18862]
[1731800236903,3.18751,3137.3,3136.7,3.98843]
[1731800237078,3.18715,3137.6,3137.0,3.18775]
[1731800237286,0.637424,3137.5,3137.0,3.18775]
[1731800237613,3.18709,3137.7,3137.0,3.18775]
[1731800237614,3.18709,3137.7,3137.1,0.8004]
[1731800237977,3.1872,3137.6,3137.1,0.8004]
[1731800238988,3.03041897,3137.8,3137.1,0.8004]
[1731800239203,3.18782,3137.0,3136.3,3.0]
[1731800239384,3.18782,3137.0,3136.4,0.8004]
[1731800239385,3.18797,3136.8,3136.4,0.8004]
[1731800239583,3.18813,3136.7,3136.4,0.8004]
[1731800239893,3.18797,3136.8,3136.4,0.8004]
[1731800241510,3.18826,3136.5,3136.4,0.8004]
[1731800241894,3.18807,3136.7,3136.4,0.8004]
[1731800242387,3.18819,3136.6,3136.4,0.8004]
[1731800242919,6.37623,3136.7,3136.4,0.8004]
[1731800243484,3.1882,3136.6,3136.4,0.8004]
[1731800243720,3.18807,3136.7,3136.4,0.8004]
[1731800244095,3.18826,3136.5,3136.4,0.8004]
[1731800245028,3.18807,3136.7,3136.1,0.7845]
[1731800245029,3.18857,3136.2,3136.1,0.7845]
[1731800245194,3.1884,3136.4,3136.1,0.7845]
[1731800246315,3.18849,3136.3,3136.1,0.7845]
[1731800246524,3.1882,3136.6,3136.1,0.7845]
[1731800246719,3.18833,3136.5,3136.1,0.7845]
[1731800247230,3.58667,3136.8,3136.1,0.7845]
[1731800247394,3.18799,3136.8,3136.2,3.18854]
[1731800247585,3.18799,3136.8,3136.3,0.7845]
[1731800247926,3.18819,3136.6,3136.3,0.7845]
[1731800248135,3.18829,3136.5,3136.3,0.7845]
[1731800248687,3.18819,3136.6,3136.3,0.7845]
[1731800249425,3.18778,3137.0,3136.3,0.7845]
[1731800249726,3.18792,3136.9,3136.3,0.7845]
[1731800249924,3.18792,3136.9,3136.3,3.97294]
[1731800250298,3.18792,3136.9,3136.3,0.7845]
[1731800251029,0.94305661,3137.1,3136.3,0.7845]
[1731800251355,0.7763,3137.2,3136.3,0.7845]
[1731800251356,3.18812,3136.7,3136.4,0.04779963]
[1731800253348,6.37627,3136.7,3136.4,0.04779963]
[1731800253645,3.18826,3136.5,3136.4,0.04779963]
[1731800254150,3.18859,3136.2,3136.0,0.7845]
[1731800254302,3.507449,3136.2,3135.8,0.7845]
[1731800254501,3.18859,3136.2,3135.8,0.7845]
[1731800254735,3.18866,3136.2,3135.8,0.7845]
[1731800254995,6.37732,3136.2,3135.9,0.04779963]
[1731800255195,3.18866,3136.2,3135.9,0.04779963]
[1731800255399,3.18877,3136.0,3135.9,0.04779963]
[1731800258132,3.18887,3135.9,3135.8,0.78229963]
[1731800259254,3.18854,3136.3,3135.8,0.78229963]
[1731800260406,3.18816,3136.6,3135.8,0.46091026]
[1731800260640,3.18799,3136.8,3136.1,3.18858]
[1731800260900,3.18817,3136.6,3136.0,3.18876]
[1731800261132,3.18817,3136.6,3136.1,0.7845]
[1731800261353,3.18799,3136.8,3136.1,0.7845]
[1731800261558,9.78653603,3139.4,3136.4,0.7845]
[1731800261559,3.18762,3137.2,3136.4,0.7845]
[1731800261706,3.18722,3137.6,3137.0,0.7845]
[1731800261907,3.18722,3137.6,3137.0,3.97225]
[1731800262112,3.18727,3137.5,3137.0,0.7845]
[1731800262753,0.7763,3137.9,3137.0,0.7845]
[1731800262958,3.18745,3137.3,3137.0,0.7845]
[1731800263277,3.506195,3137.3,3137.0,0.7845]
[1731800263418,3.18765,3137.1,3136.8,0.8121]
[1731800263847,3.18786,3136.9,3136.4,0.8121]
[1731800264212,3.18789,3136.9,3136.4,0.8121]
[1731800264743,3.18797,3136.8,3136.4,0.8121]
[1731800264932,3.18807,3136.7,3136.4,0.8121]
[1731800266268,3.18826,3136.5,3136.4,0.8121]
[1731800266552,3.18855,3136.3,3136.2,0.04780854]
[1731800275472,4.01475,3136.3,3136.2,0.04780854]
[1731800275823,7.58345315,3136.3,3136.2,8.54e-06]
[1731800276161,9.91880862,3136.3,3136.2,8.54e-06]
[1731800276350,16.48658021,3136.3,3136.2,8.54e-06]
[1731800276969,9.91880862,3136.3,3136.2,8.54e-06]
[1731800277270,16.47482607,3136.3,3136.2,8.54e-06]
[1731800277423,9.91880862,3136.3,3136.2,8.54e-06]
[1731800278624,9.90953462,3136.3,3136.2,8.54e-06]
[1731800278848,15.37158689,3136.3,3136.2,8.54e-06]
[1731800279161,9.90953462,3136.3,3136.2,8.54e-06]
[1731800279348,9.91880862,3136.3,3136.2,8.54e-06]
[1731800279545,15.38086089,3136.3,3136.2,8.54e-06]
[1731800279869,9.90953462,3136.3,3136.2,8.54e-06]
[1731800280068,15.37158689,3136.3,3136.2,8.54e-06]
[1731800280372,9.91880862,3136.3,3136.2,8.54e-06]
[1731800281233,15.37974511,3136.3,3136.2,8.54e-06]
[1731800281571,9.91880862,3136.3,3136.2,8.54e-06]
[1731800281775,15.3788104,3136.3,3136.2,8.54e-06]
[1731800281978,9.90953462,3136.3,3136.2,8.54e-06]
[1731800282332,9.35010547,3136.3,3136.2,8.54e-06]
[1731800282532,6.35010547,3136.3,3136.2,8.54e-06]
[1731800283943,5.52390547,3136.3,3136.2,8.54e-06]
[1731800284147,3.18855,3136.3,3136.2,8.54e-06]
[1731800285036,3.18855,3136.3,3136.2,0.79540854]
[1731800289947,3.18826,3136.5,3136.2,0.79540854]
[1731800291944,3.1881,3136.7,3136.2,0.79540854]
[1731800292177,3.18834,3136.5,3136.2,0.79540854]
[1731800292351,3.18837,3136.4,3136.2,0.79540854]
[1731800292756,3.18818,3136.6,3136.2,0.79540854]
[1731800293059,3.18819,3136.6,3136.2,0.79540854]
[1731800293260,0.8033,3137.1,3136.2,0.79540854]
[1731800293579,3.18752,3137.3,3136.7,3.18799]
[1731800293773,3.18734,3137.5,3136.9,0.8082]
[1731800294098,3.18744,3137.4,3136.9,0.8082]
[1731800294398,3.18725,3137.5,3136.9,3.99604]
[1731800294555,3.18735,3137.4,3136.9,0.8082]
[1731800295760,3.18718,3137.6,3136.9,0.8082]
[1731800295976,3.18725,3137.5,3136.9,3.99605]
[1731800296176,3.18735,3137.4,3136.9,0.8082]
[1731800296441,3.18751,3137.3,3136.9,0.8082]
[1731800296722,3.18735,3137.4,3136.9,0.8082]
[1731800296723,3.18757,3137.2,3136.9,0.8082]
[1731800298593,3.18746,3137.3,3136.9,0.8082]
[1731800298998,3.82551897,3138.0,3136.9,1.207826]
[1731800299320,3.18717,3137.6,3137.1,0.8082]
[1731800300031,3.187,3137.8,3137.1,0.8082]
[1731800300175,3.187,3137.8,3137.3,0.8082]
[1731800300628,0.7951,3138.3,3137.3,0.8082]
[1731800300781,3.18735,3137.4,3137.3,0.8082]
[1731800301391,3.18716,3137.6,3137.3,0.8082]
[1731800301614,3.18728,3137.5,3137.3,0.8082]
[1731800301939,3.18735,3137.4,3137.3,0.8082]
[1731800302103,0.637444,3137.5,3136.5,0.8021]
[1731800302104,3.18786,3136.9,3136.5,0.8021]
[1731800302992,3.188,3136.8,3136.5,0.8021]
[1731800303243,3.18808,3136.7,3136.5,0.8021]
[1731800304097,3.18816,3136.6,3136.5,0.8021]
[1731800306060,3.18847,3136.3,3136.2,0.80210854]
[1731800306549,3.18808,3136.7,3136.2,0.80210854]
[1731800306762,3.1883,3136.5,3136.2,0.80210854]
[1731800307555,3.18847,3136.3,3136.2,0.80210854]
[1731800307845,3.18847,3136.3,3136.2,8.54e-06]
[1731800315672,4.01577,3136.3,3136.2,8.54e-06]
[1731800317126,3.18847,3136.3,3136.2,8.54e-06]
[1731800318230,3.18847,3136.3,3136.2,0.75940854]
[1731800319141,3.18847,3136.3,3136.2,8.54e-06]
[1731800319378,4.144982,3136.3,3136.2,8.54e-06]
[1731800320558,4.972282,3136.3,3136.2,8.54e-06]
[1731800328904,5.522282,3136.3,3136.2,8.54e-06]
[1731800329208,10.96788161,3136.3,3136.2,8.54e-06]
[1731800329367,5.506082,3136.3,3136.2,8.54e-06]
[1731800329568,10.96569962,3136.3,3136.2,8.54e-06]
[1731800330192,5.506082,3136.3,3136.2,8.54e-06]
[1731800331157,4.956082,3136.3,3136.2,8.54e-06]
[1731800333373,4.144982,3136.3,3136.2,8.54e-06]
[1731800334460,3.18847,3136.3,3136.2,0.81330854]
[1731800338411,3.18847,3136.3,3136.2,8.54e-06]
[1731800338412,3.99957,3136.3,3136.2,8.54e-06]
[1731800341986,3.18847,3136.3,3136.2,8.54e-06]
[1731800342329,4.5284539,3136.3,3136.2,8.54e-06]
[1731800342540,3.18847,3136.3,3136.2,8.54e-06]
[1731800344082,3.1883,3136.5,3136.3,0.7792]
[1731800344279,3.18804,3136.8,3136.3,0.7792]
[1731800345594,3.18775,3137.0,3136.2,3.25232266]
[1731800345785,3.18775,3137.0,3136.4,3.18836]
[1731800345978,3.18803,3136.8,3136.4,0.7792]
[1731800347825,3.1878,3137.0,3136.4,0.7792]